Cogmind - Beta 14 @@@ ROGUE MODE // 2024.11.21 @ 19:14:10 Player: akira Result: Destroyed by B4-MQR(R) with Subdweller Shrapnel Launcher Performance ------------- Evolutions (0) 0 Regions Visited (3) 600 Robots Destroyed (15) 75 Value Destroyed (476) 476 Prototype IDs (0) 0 Alien Tech Used (0) 0 Bonus (0) 0 TOTAL SCORE: 1151 Bonus ------- None Cogmind --------- Core Integrity 0/250 Matter 153/300 Energy 250/250 System Corruption 0% Temperature Cool (0) Movement Hovering (116) Ox1 Location -10/Subcaves Parts ------- > --- POWER (1) -------- Ion Engine > --- PROPULSION (2) --- Hover Unit Hover Unit > --- UTILITY (2) ------ Small Storage Unit Signal Interpreter > --- WEAPON (2) ------- Grenade Launcher > --- INVENTORY (8) ---- Flight Unit Sensor Array Faulty Experimental Sensor Array Scrap Shield Light Assault Rifle Improved Light Cannon Peak State ------------ > --- POWER ------------ Ion Engine > --- PROPULSION ------- Hover Unit Hover Unit > --- UTILITY ---------- Small Storage Unit > --- WEAPON ----------- Improved Light Cannon Flail > --- INVENTORY -------- Light Ion Engine Light Ion Engine Hover Unit Hover Unit Hover Unit Trap Extractor Improved Light Cannon Grenade Launcher [Rating: 9] Favorites ----------- Power Ion Engine Engine Ion Engine Propulsion Hover Unit Leg Aluminum Leg Hover Unit Hover Unit Utility Small Storage Unit Storage Small Storage Unit Processor Signal Interpreter Weapon Improved Light Cannon Ballistic Gun Light Assault Rifle Ballistic Cannon Improved Light Cannon Launcher Grenade Launcher Special Weapon Mining Laser Impact Weapon Flail Build | -11 -10 -10 -10 ------- Run | Yrd Mat Min Sub Slots Evolved . | . . . . Power . | . . . . Propulsion . | . . . . Utility . | . . . . Weapon . | . . . . Parts Attached 29 | 6 18 4 1 Power 4 | 2 1 1 . Engine 4 | 2 1 1 . Core . | . . . . Reactor . | . . . . Propulsion 10 | 2 6 2 . Treads . | . . . . Leg 2 | 2 . . . Wheel . | . . . . Hover 8 | . 6 2 . Flight . | . . . . Utility 2 | 1 1 . . Device . | . . . . Storage 1 | 1 . . . Processor 1 | . 1 . . Hackware . | . . . . Protection . | . . . . Artifact . | . . . . Weapon 13 | 1 10 1 1 Energy Gun . | . . . . Energy Cannon . | . . . . Ballistic Gun 6 | 1 4 1 . Ballistic Cannon 4 | . 4 . . Launcher 1 | . . . 1 Special Weapon 1 | . 1 . . Impact Weapon 1 | . 1 . . Slashing Weapon . | . . . . Piercing Weapon . | . . . . Special Melee Weapon . | . . . . Unidentified Prototypes . | . . . . Parts Lost 7 | . 3 4 . Power 1 | . . 1 . Propulsion 5 | . 3 2 . Utility . | . . . . Weapon 1 | . . 1 . Highest Loss Streak 4 | . 2 4 . To Critical Strikes . | . . . . Average Slot Usage (%) 84 | . 79 91 85 Engine 13 | . 14 12 14 Hover 26 | . 26 25 28 Storage 14 | . 14 14 14 Processor 8 | . 3 14 14 Ballistic Gun 4 | . 5 2 6 Ballistic Cannon 9 | . 8 11 . Special Weapon 7 | . 6 10 . Peak Build Rating 9 | 5 9 9 7 Average Rating 7 | 4 6 7 6 On Entrance 5 | . 5 8 7 Naked Turns . | . . . . Heaviest Build 15 | 12 15 15 13 Greatest Support 20 | 20 20 12 12 Greatest Overweight (x) 2 | 1 1 2 1 Average Overweight (x) . | . . . . Largest Inventory Capacity 8 | 8 8 8 8 Average Capacity 7 | 7 8 8 8 Most Carried 8 | 4 8 8 7 Average Carried 7 | 2 7 7 6 Final Capacity 8 | 8 8 8 8 Final Carried 8 | 4 8 5 7 Class Distribution -------------------- 100% | Mutant Dominant Class ---------------- Mutant | -10/Materials Mutant | -10/Mines Mutant | -10/Subcaves Resources | -11 -10 -10 -10 ----------- Run | Yrd Mat Min Sub Matter Collected 638 | 217 197 144 80 Remotely . | . . . . Salvage Created 420 | . 313 22 85 Parts 33 | . 29 . 4 Haulers Intercepted . | . . . . Recyclers Shooed . | . . . . Parts Field Recycled . | . . . . Retrieved Matter . | . . . . Parts Self-Destructed . | . . . . Prevented . | . . . . Kills | -11 -10 -10 -10 ------- Run | Yrd Mat Min Sub Combat Hostiles Destroyed 11 | . 7 2 2 Guns 4 | . 4 . . Cannons 5 | . 3 2 . AOE 2 | . . . 2 Classes Destroyed 4 | . 3 . 1 Operator 2 | . 2 . . Watcher 2 | . 2 . . Grunt 9 | . 7 2 . Subdweller 2 | . . . 2 Best Kill Streak 2 | . 2 1 2 Combat Bots Only 2 | . 2 1 2 Max Kills in Single Turn 1 | . 1 1 1 Gunslinging . | . . . . Exploded 1 | . . . 1 Melee . | . . . . Uniques/NPCs Destroyed . | . . . . Combat | -11 -10 -10 -10 -------- Run | Yrd Mat Min Sub Hostile Shots Fired 83 | . 60 20 3 Missed 19 | . 15 2 2 Damage Taken 962 | . 621 277 64 Core 259 | . 115 80 64 Absorbed by Shields . | . . . . Core Remaining (%) 100 | 100 . . . Volleys Fired 99 | . 77 20 2 Largest 1 | . 1 1 1 Hottest 39 | . 39 39 30 Shots Fired 99 | . 77 20 2 Gun 52 | . 52 . . Cannon 45 | . 25 20 . Launcher 2 | . . . 2 Special . | . . . . Kinetic 97 | . 77 20 . Thermal . | . . . . Explosive 2 | . . . 2 Electromagnetic . | . . . . Robot Hit Streak 23 | . 6 21 23 Robot Miss Streak 5 | . 5 . . Penetration Max . | . . . . Secondary Targets . | . . . . Shots Hit Robots 73 | . 51 20 2 Core Hits 27 | . 21 2 4 Critical Kills . | . . . . Critical Parts Destroyed 1 | . 1 . . Critical Strikes 1 | . 1 . . Destroy 1 | . 1 . . Melee Attacks . | . . . . Impact . | . . . . Slashing . | . . . . Piercing . | . . . . Sneak Attacks . | . . . . Combat Hostiles . | . . . . Follow-up Attacks . | . . . . Damage Inflicted 1261 | . 727 413 121 Guns 451 | . 451 . . Cannons 689 | . 276 413 . Explosions 121 | . . . 121 Melee . | . . . . Ramming . | . . . . Kinetic 1140 | . 727 413 . Thermal . | . . . . Explosive 121 | . . . 121 Electromagnetic . | . . . . Impact . | . . . . Slashing . | . . . . Piercing . | . . . . Highest Corruption . | . . . . Average Corruption . | . . . . Corruption Purged . | . . . . Corruption Blocked . | . . . . Overload Shots . | . . . . Overflow Damage 49 | . 17 32 . Projectiles 49 | . 17 32 . Explosions . | . . . . Melee . | . . . . Knockbacks 2 | . 2 . . Impact . | . . . . Kinetic 2 | . 2 . . Secondary . | . . . . Self-Inflicted Damage . | . . . . Shots . | . . . . Rammed . | . . . . Targets Rammed . | . . . . Kicked . | . . . . Crushed . | . . . . Highest Temperature 60 | . 20 60 . Average Temperature 14 | . 6 31 . Received Heat Transfer 567 | . 375 192 . Siege Activations . | . . . . Robots Corrupted . | . . . . Combat Hostiles . | . . . . Parts Fried . | . . . . Impact Corruptions . | . . . . Robots Melted . | . . . . Combat Hostiles . | . . . . Parts Melted . | . . . . Heat Transferred . | . . . . Parts Sabotaged . | . . . . Parts Stolen . | . . . . Parts Stripped . | . . . . Power Chain Reactions . | . . . . Alert | -11 -10 -10 -10 ------- Run | Yrd Mat Min Sub Peak Influence 223 | . 223 39 . Initial 39 | . . 39 . Average 65 | . 96 29 . Maximum Alert Level 1 | . 1 . . Low Security (%) 96 | 100 93 100 . Level 1 3 | . 6 . . Level 2 . | . . . . Level 3 . | . . . . Level 4 . | . . . . Level 5 . | . . . . High Security . | . . . . Max Security . | . . . . Squads Dispatched 2 | . 2 . . Investigation . | . . . . Extermination . | . . . . Reinforcement 2 | . 2 . . Assault . | . . . . Garrison . | . . . . Intercept . | . . . . Searches Triggered . | . . . . Construction Impeded . | . . . . Haulers Reinforced . | . . . . Active Scanning Responses . | . . . . Cargo Convoy Interrupts . | . . . . Stealth | -11 -10 -10 -10 --------- Run | Yrd Mat Min Sub Distress Signals 3 | . 3 . . Communications Jammed . | . . . . Distress Signals . | . . . . Times Spotted 38 | . 33 2 3 Peak Tracking Total 5 | . 5 2 2 Tactical Retreats 7 | . 7 . . Traps | -11 -10 -10 -10 ------- Run | Yrd Mat Min Sub Traps Triggered 1 | . 1 . . Indirectly . | . . . . Trap Hack Attempts . | . . . . Triggered . | . . . . Disarmed . | . . . . Reprogrammed . | . . . . Reused . | . . . . Traps Extracted . | . . . . Installed . | . . . . Triggered . | . . . . Machines | -11 -10 -10 -10 ---------- Run | Yrd Mat Min Sub Machines Disabled 1 | . 1 . . Max in Single Turn 1 | . 1 . . Machines Repaired . | . . . . Machines Dismantled . | . . . . Machines Sabotaged . | . . . . Overloaded Fab Kills . | . . . . Hacking | -11 -10 -10 -10 --------- Run | Yrd Mat Min Sub Machines Accessed 2 | . 1 . 1 Terminals 1 | . 1 . . Fabricators . | . . . . Repair Stations . | . . . . Recycling Units . | . . . . Scanalyzers . | . . . . Garrison Access . | . . . . Total Hacks 5 | . 1 . 4 Successful 4 | . . . 4 Failed 1 | . 1 . . Catastrophic . | . . . . Database Lockouts . | . . . . Manual 10 | . . . 10 Terminals 1 | . 1 . . Fabricators . | . . . . Repair Stations . | . . . . Recycling Units . | . . . . Scanalyzers . | . . . . Garrison Access . | . . . . Terminal Hacks 4 | . . . 4 Record 4 | . . . 4 Fabricator Hacks . | . . . . Repair Station Hacks . | . . . . Recycling Unit Hacks . | . . . . Scanalyzer . | . . . . Garrison Access Hacks . | . . . . Unauthorized Hacks . | . . . . Terminals . | . . . . Fabricators . | . . . . Repair Stations . | . . . . Recycling Units . | . . . . Scanalyzers . | . . . . Garrison Access . | . . . . Data Cores Recovered . | . . . . Used . | . . . . Hacking Detections 1 | . 1 . . Full Trace Events . | . . . . Feedback Events . | . . . . Feedback Blocked . | . . . . Robot Schematics Acquired . | . . . . Robots Built . | . . . . Authchips . | . . . . Time . | . . . . Total Robot Build Rating . | . . . . Part Schematics Acquired . | . . . . Parts Built . | . . . . Authchips . | . . . . Time . | . . . . Total Part Build Rating . | . . . . Parts Repaired . | . . . . Time . | . . . . Parts Recycled . | . . . . Recycled Matter . | . . . . Retrieved Matter . | . . . . Retrieved Components . | . . . . Parts Scanalyzed . | . . . . Part Schematics Acquired . | . . . . Parts Damaged . | . . . . Bothacking | -11 -10 -10 -10 ------------ Run | Yrd Mat Min Sub Used RIF Installer . | . . . . Robots Hacked . | . . . . Non-combat . | . . . . Combat . | . . . . Robot Hacks Applied . | . . . . Relay Couplers Released . | . . . . Fabnet Peak Effective % . | . . . . Robots Rewired . | . . . . Allies Hacked . | . . . . Hacks Repelled . | . . . . Allies | -11 -10 -10 -10 -------- Run | Yrd Mat Min Sub Total Allies . | . . . . Largest Group . | . . . . Highest-Rated Group . | . . . . Highest-Rated Ally . | . . . . Total Orders . | . . . . Ally Attacks . | . . . . Total Damage . | . . . . Kills . | . . . . Allies Corrupted . | . . . . Allies Melted . | . . . . Intel | -11 -10 -10 -10 ------- Run | Yrd Mat Min Sub Robot Analysis Total . | . . . . Derelict Logs Recovered 4 | . . 2 2 Drone Launches . | . . . . Drone Recoveries . | . . . . Exploration | -11 -10 -10 -10 ------------- Run | Yrd Mat Min Sub Turns Passed 1882 | 64 980 702 136 Spaces Moved 1487 | 46 763 542 136 Core 32 | 4 . 28 . Treads . | . . . . Legs 52 | 42 10 . . Wheels . | . . . . Hover 1403 | . 753 514 136 Flight . | . . . . Fastest Speed 50 | 50 56 56 56 Average Speed 93 | 115 90 100 74 Slowest Speed 190 | 190 120 150 116 Overloaded Moves . | . . . . Propulsion Burnouts . | . . . . Robots Hopped . | . . . . Cave-ins Triggered . | . . . . Exploration Rate (%) 45 | 4 74 92 10 Regions Visited 3 Branch Regions 2 Pre-discovered Areas 1 | . . . 1 Known Exits Taken 2 | . 1 1 . Unknown Exits Taken 1 | 1 . . . Scrap Searched 1 | . . 1 . Spaces Dug . | . . . . Terrain Destroyed 10 | . 2 . 8 Melee . | . . . . Projectile 2 | . 2 . . AOE 8 | . . . 8 Terrain Rammed . | . . . . Walls Destroyed . | . . . . Machines Disabled . | . . . . Actions | -11 -10 -10 -10 --------- Run | Yrd Mat Min Sub Total 1879 | 54 978 679 168 Wait 231 | . 94 111 26 Move 1484 | 45 762 541 136 Hop . | . . . . Pick Up 17 | 3 11 1 2 Fast Attach 16 | 5 10 1 . Attach 2 | . . 2 . Detach 2 | . 2 . . Swap 11 | 1 8 1 1 Drop 17 | . 14 2 1 Fire 99 | . 77 20 2 Melee . | . . . . Ram . | . . . . Kick . | . . . . Crush . | . . . . Escape Stasis . | . . . . Rewire . | . . . . Trap . | . . . . Miscellaneous . | . . . . Route ------- -11/Scrapyard -10/Materials (discovered 4 exits: *Mat x2 / *Min x2) -10/Mines (discovered 2 exits: *Mat / *Sub) -10/Subcaves History --------- Turn | Location | Event 3 | -11/Scrapyard | Discovered new exit (range 15) 65 | -11/Scrapyard | Entered Materials 255 | -10/Materials | Discovered new exit (range 5) 330 | -10/Materials | Build established: Mutant 495 | -10/Materials | Discovered new exit (range 14) 512 | -10/Materials | Discovered new exit (range 16) 731 | -10/Materials | Discovered new exit (range 3) 938 | -10/Materials | Identified exit to Materials 992 | -10/Materials | Identified exit to Mines 1045 | -10/Materials | Entered Mines 1069 | -10/Mines | Learned location of 1 exit from Materials 1255 | -10/Mines | Found a damaged Exp. Sensor Array with a note attached 1260 | -10/Mines | Found Prototype Device 1382 | -10/Mines | YI-UF0 nonchalantly dropped a Grenade Launcher on the ground 1410 | -10/Mines | Learned Materials security intel 1559 | -10/Mines | Core integrity fell below 50% 1593 | -10/Mines | Lost 4 parts (1p2n1w) 1664 | -10/Mines | Discovered exit to Materials (range 5) 1743 | -10/Mines | Discovered new exit (range 9) 1746 | -10/Mines | Identified exit to Subcaves 1747 | -10/Mines | Entered Subcaves 1772 | -10/Subcaves | Visited Clippyterm 1774 | -10/Subcaves | Learned Factory garrison access intel 1774 | -10/Subcaves | Learned 40 Factory zone layouts 1793 | -10/Subcaves | Learned location of Zion (-7) 1797 | -10/Subcaves | Learned Materials emergency access door positions 1799 | -10/Subcaves | Ambushed by Subdwellers from Twisted Machinery 1882 | -10/Subcaves | Ambushed by swarm of Subdwellers 1883 | -10/Subcaves | Destroyed by B4-MQR(R) with Subdweller Shrapnel Launcher Last Messages --------------- >>Record! "Cartography" It looks like you want to prove yourself as a member of the Cartography Club, why not cheat using advanced predictive AI techniques? Data stored: Factory zone layouts (x40). 01793_ Acquired derelict log, extracted data. World map updated: -7/Zion. 01797_ Acquired derelict log, extracted data. Data stored: Materials emergency access points. 01799_ 1G-DR0(R) emerges from the Twisted Machinery. 01804_ H9-4RC(R) destroyed. 01805_ The unstable cave ceiling collapses. 01806_ 1G-DR0(R) destroyed. 01812_ Subatomizers dissect the Sub. Power Source. 01813_ The unstable cave ceiling collapses. 01817_ Acquired 65 matter. 01818_ The unstable cave ceiling collapses. 01823_ Subatomizers dissect the Sub. Power Source. 01882_ 97-DQB(h): "The Subs are coming!" Map ----- +----------------------------------------------------+ | ?????????????????????????????????????????????????? | | ?????????????????????????????????????????????????? | | ?????????????????????????????????????????????????? | | ?????????????????????????????????????????????????? | | ?????????????????????????????????????????????????? | | ?????????????????????????????????????????????????? | | ?????????????????????????????????????????????????? | | ?????????????????????????????????????????????????? | | ?????????????????????????????????????????????????? | | ?????????????????????????????????????????????????? | | ?????????????????????????????????????????????????? | | ?????????????????????????????????????????????????? | | ?????????????????????????????????????????????????? | | ?????????????????????????#???????????????????????? | | #######??????????????????"####???????????????????? | | ## ##?????????????????"" #???????????????????? | | ##???????????????? ????????????????????? | | #???????????????#R ????????????????????? | | ###????????????? #????????##??????????? | | # # ###??????????? #?????? ??????????? | | # # ##?????????? ###?? ??????????? | | # * = " ##?####???? ## ?????????? | | [[& ""g### ###### ?????????? | | ## = #" g # # #?????????? | | ### "" # # h #??????????? | | ## "" " ## @ #??????????? | | # ## "" " #### ## ## ###???????????????? | | ###### "" #### #?######? ####?????????????????? | | ?????#######??# #?????????##????????????????????? | | ??????????????####???????????????????????????????? | | ?????????????????????????????????????????????????? | | ?????????????????????????????????????????????????? | | ?????????????????????????????????????????????????? | | ?????????????????????????????????????????????????? | | ?????????????????????????????????????????????????? | | ?????????????????????????????????????????????????? | | ?????????????????????????????????????????????????? | | ?????????????????????????????????????????????????? | | ?????????????????????????????????????????????????? | | ?????????????????????????????????????????????????? | | ?????????????????????????????????????????????????? | | ?????????????????????????????????????????????????? | | ?????????????????????????????????????????????????? | | ?????????????????????????????????????????????????? | | | | | | | | | | | | | +----------------------------------------------------+ Best States ------------- Heat Dissipation 25 Energy Generation 10 Energy Capacity 250 Matter Stores 257 Matter Capacity 300 Sight Range 16 Terrain Scan Density 10 Evasion (%) 55 Item Schematics ----------------- None Robot Schematics ------------------ None Fabricated ------------ Nothing Alien Tech Used ----------------- None Achievements -------------- None Challenges ------------ None Game ------ Seed RecoilSurgeBiocell Manual? 0 Play Time 00:28:30 Cumulative 12.0 hours Start 2024.11.21 @ 18:25:42 End 2024.11.21 @ 19:14:10 Sessions 1 Manual Loads 0 Difficulty Rogue Special Mode None Game No. 18 Rogue 18 Adventurer 0 Explorer 0 Win Type - Total 0 Types 0/0/0/0/0/0/0/0/0 Lore% 4 Gallery% 14 Achievement% 16 Wizard Run 0 Options --------- Layout 1 ASCII 0 Keyboard 0 Movement Mouse Keybinds 0 Fullscreen 1 Font 16/SmallcapsGlow Map View 27x19 Zoom Use 91% Tactical HUD 1 Map Filters NONE Filters NONE Steam 1 RUN: d4f57c25-86b6-4d73-88f9-e07c0ce9c0f8